[Event "Niedersachsen Jubilaeumsturnier Open A 2"]
[Site "Wolfsburg"]
[Date "2024.11.15"]
[Round "1.9"]
[White "Costello, Colin A"]
[Black "Laube, Reiner"]
[Result "0-1"]
[ECO "A21"]
[WhiteElo "1877"]
[BlackElo "2140"]
[Annotator "RC"]
[PlyCount "74"]
[EventDate "2024.11.15"]
[EventCountry "GER"]
[SourceTitle "playchess.com"]
[Source "ChessBase"]
[SourceQuality "1"]
[TimeControl "5400+30"]

1. c4 {[%emt 0:00:02]} f5 {[%emt 0:00:07]} 2. Nf3 {[%emt 0:00:07]} Nf6 {[%emt 0:00:09]} 3. Nc3 {[%emt 0:00:09]} g6 {[%emt 0:00:36]} 4. g3 {[%emt 0:00:07]} Bg7 {[%emt 0:00:11]} 5. Bg2 {[%emt 0:00:10]} O-O {[%emt 0:00:13]} 6. O-O {[%emt 0:00:07]} d6 {[%emt 0:00:18]} 7. d3 {[%emt 0:00:17]} e5 {[%emt 0:03:22]} 8. Rb1 {[%emt 0:00:18]} c6 {[%emt 0:03:38]} 9. b4 {[%emt 0:00:09]} Qc7 {[%emt 0:00:54]} 10. b5 {[%emt 0:02:08]} h6 {[%emt 0:01:41]} 11. Qa4 {[%emt 0:04:38]} Nfd7 {[%emt 0:06:02]} 12. Qc2 {[%emt 0:05:23]} Nc5 {[%emt 0:02:11]} 13. Nd2 {[%emt 0:09:43]} Be6 {[%emt 0:02:53]} 14. Ba3 {[%emt 0:00:51]} Nbd7 {[%emt 0:01:31]} 15. Nb3 {[%emt 0:04:12]} Bf7 {[%emt 0:07:48]} 16. Nxc5 {[%emt 0:00:52]} Nxc5 {[%emt 0:00:43]} 17. Bxc5 {[%emt 0:02:23]} dxc5 {[%emt 0:00:07]} 18. bxc6 {[%emt 0:00:17]} bxc6 {[%emt 0:00:08]} 19. e4 {[%emt 0:06:16]} f4 {[%emt 0:02:00]} 20. Rb3 {[%emt 0:00:53]} Be6 {[%emt 0:05:43]} 21. Rfb1 {[%emt 0:00:32]} f3 {[%emt 0:01:10]} 22. Rb7 {[%emt 0:00:36]} Qd6 {[%emt 0:03:05]} 23. Bf1 {[%emt 0:00:18]} Bc8 {[%emt 0:01:36]} 24. R7b3 {[%emt 0:02:13]} h5 {[%emt 0:12:19]} 25. Qb2 {[%emt 0:01:23]} Bd7 {[%emt 0:01:48]} 26. Rb7 {[%emt 0:01:37]} h4 {[%emt 0:00:42]} 27. Na4 {[%emt 0:00:24]} hxg3 {[%emt 0:00:35]} 28. hxg3 {[%emt 0:00:09]} Rfd8 {[%emt 0:03:45]} 29. Qa3 {[%emt 0:00:54]} Bf8 {[%emt 0:00:44]} 30. Nc3 {[%emt 0:00:58]} a5 {[%emt 0:04:53]} 31. Na4 {[%emt 0:02:33]} Bc8 {[%emt 0:02:44]} 32. R7b2 {[%emt 0:00:27]} Ra7 {[%emt 0:01:49]} 33. Qb3 {[%emt 0:10:45]} Bg4 {[%emt 0:06:15]} 34. Qb6 {[%emt 0:02:23]} Rh7 {[%emt 0:00:39]} 35. Nxc5 {[%emt 0:01:11]} g5 {[%emt 0:01:27]} 36. Qxd8 {[%emt 0:06:08]} Qxd8 {[%emt 0:02:00]} 37. Rb8 {[%emt 0:00:09]} Qd6 {[%emt 0:23:14]} 0-1

[Event "Niedersachsen Jubilaeumsturnier Open A 2"]
[Site "Wolfsburg"]
[Date "2024.11.15"]
[Round "1.10"]
[White "Lippert, Daniel"]
[Black "Rademacher, Bengt"]
[Result "1-0"]
[ECO "B12"]
[WhiteElo "2128"]
[BlackElo "1876"]
[Annotator "RC"]
[PlyCount "176"]
[EventDate "2024.11.15"]
[EventCountry "GER"]
[SourceTitle "playchess.com"]
[Source "ChessBase"]
[SourceQuality "1"]
[TimeControl "5400+30"]

1. e4 {[%emt 0:00:13]} c6 {[%emt 0:00:09]} 2. d4 {[%emt 0:00:06]} d5 {[%emt 0:00:07]} 3. e5 {[%emt 0:00:24]} c5 {[%emt 0:00:13]} 4. Nf3 {[%emt 0:00:04]} cxd4 {[%emt 0:01:08]} 5. Nxd4 {[%emt 0:00:30]} Nc6 {[%emt 0:01:12]} 6. Bb5 {[%emt 0:07:45]} Bd7 {[%emt 0:00:58]} 7. e6 {[%emt 0:20:35]} fxe6 {[%emt 0:00:16]} 8. Bxc6 {[%emt 0:10:40]} bxc6 {[%emt 0:01:43]} 9. Qh5+ {[%emt 0:02:33]} g6 {[%emt 0:00:06]} 10. Qe5 {[%emt 0:02:01]} Nf6 {[%emt 0:00:10]} 11. Nxe6 {[%emt 0:00:58]} Bxe6 {[%emt 0:05:32]} 12. Qxe6 {[%emt 0:00:05]} Qd7 {[%emt 0:00:09]} 13. Qe2 {[%emt 0:02:19]} Bg7 {[%emt 0:02:50]} 14. O-O {[%emt 0:06:16]} O-O {[%emt 0:01:30]} 15. Nd2 {[%emt 0:00:53]} e5 {[%emt 0:02:42]} 16. b3 {[%emt 0:05:47]} Rae8 {[%emt 0:05:06]} 17. Ba3 {[%emt 0:01:10]} Rf7 {[%emt 0:00:42]} 18. Rad1 {[%emt 0:05:40]} Qf5 {[%emt 0:02:28]} 19. c4 {[%emt 0:02:06]} d4 {[%emt 0:05:24]} 20. Qf3 {[%emt 0:09:13]} e4 {[%emt 0:14:43]} 21. Qxf5 {[%emt 0:01:44]} gxf5 {[%emt 0:00:03]} 22. Rfe1 {[%emt 0:01:34]} f4 {[%emt 0:12:04]} 23. b4 {[%emt 0:03:46]} Rd7 {[%emt 0:08:18]} 24. Nb3 {[%emt 0:00:39]} d3 {[%emt 0:02:27]} 25. Bb2 {[%emt 0:03:19]} e3 {[%emt 0:08:28]} 26. fxe3 {[%emt 0:05:21]} fxe3 {[%emt 0:01:55]} 27. Bxf6 {[%emt 0:01:51]} Bxf6 {[%emt 0:08:40]} 28. Nc5 {[%emt 0:00:04]} Rd4 {[%emt 0:05:42]} 29. Rxd3 {[%emt 0:01:09]} Rxc4 {[%emt 0:00:29]} 30. Nd7 {[%emt 0:02:42]} Bg7 {[%emt 0:01:43]} 31. a3 {[%emt 0:00:51]} Rf4 {[%emt 0:01:03]} 32. g3 {[%emt 0:00:34]} Rf7 {[%emt 0:01:44]} 33. Re2 {[%emt 0:00:24]} Rd8 {[%emt 0:02:50]} 34. Ne5 {[%emt 0:00:35]} Rxd3 {[%emt 0:00:52]} 35. Nxd3 {[%emt 0:00:01]} Bd4 {[%emt 0:01:48]} 36. Kg2 {[%emt 0:01:49]} a5 {[%emt 0:01:21]} 37. bxa5 {[%emt 0:00:34]} Ra7 {[%emt 0:00:19]} 38. Ne1 {[%emt 0:00:36]} Rxa5 {[%emt 0:00:20]} 39. Nc2 {[%emt 0:00:09]} c5 {[%emt 0:00:33]} 40. Kf3 {[%emt 0:00:45]} Kf7 {[%emt 0:00:41]} 41. Ke4 {[%emt 0:00:00]} Kf6 {[%emt 0:00:00]} 42. Nxd4 {[%emt 0:00:00]} cxd4 {[%emt 0:00:00]} 43. Kxd4 {[%emt 0:00:00]} Rxa3 {[%emt 0:00:00]} 44. Ke4 {[%emt 0:00:00]} Kg5 {[%emt 0:00:00]} 45. Kf3 {[%emt 0:00:00]} h5 {[%emt 0:00:00]} 46. h3 {[%emt 0:00:00]} Ra1 {[%emt 0:00:00]} 47. Rxe3 {[%emt 0:00:00]} Kf5 {[%emt 0:00:00]} 48. Rc3 {[%emt 0:00:00]} Ra5 {[%emt 0:00:00]} 49. Rc2 {[%emt 0:00:00]} Ra3+ {[%emt 0:00:00]} 50. Kg2 {[%emt 0:00:00]} Ra5 {[%emt 0:00:00]} 51. h4 {[%emt 0:00:00]} Rb5 {[%emt 0:00:00]} 52. Ra2 {[%emt 0:00:00]} Rc5 {[%emt 0:00:00]} 53. Ra6 {[%emt 0:00:00]} Rb5 {[%emt 0:00:00]} 54. Rh6 {[%emt 0:00:00]} Ke4 {[%emt 0:00:00]} 55. Kh3 {[%emt 0:00:16]} Ra5 {[%emt 0:00:00]} 56. Rg6 {[%emt 0:01:56]} Rb5 {[%emt 0:01:54]} 57. Rf6 {[%emt 0:02:01]} Ke5 {[%emt 0:00:30]} 58. Rg6 {[%emt 0:01:38]} Ke4 {[%emt 0:01:01]} 59. Rg7 {[%emt 0:00:51]} Rf5 {[%emt 0:00:43]} 60. Kg2 {[%emt 0:00:36]} Ke5 {[%emt 0:00:16]} 61. Ra7 {[%emt 0:01:05]} Kf6 {[%emt 0:00:18]} 62. Ra6+ {[%emt 0:00:20]} Kg7 {[%emt 0:00:16]} 63. Ra4 {[%emt 0:00:17]} Kg6 {[%emt 0:00:11]} 64. Rf4 {[%emt 0:00:44]} Ra5 {[%emt 0:01:18]} 65. Rf3 {[%emt 0:00:14]} Rb5 {[%emt 0:00:14]} 66. Kf2 {[%emt 0:00:22]} Re5 {[%emt 0:00:54]} 67. Ra3 {[%emt 0:00:10]} Rf5+ {[%emt 0:00:23]} 68. Ke3 {[%emt 0:00:11]} Rb5 {[%emt 0:00:23]} 69. Ra6+ {[%emt 0:00:24]} Kg7 {[%emt 0:00:13]} 70. Re6 {[%emt 0:00:47]} Ra5 {[%emt 0:00:17]} 71. Kf4 {[%emt 0:00:28]} Ra4+ {[%emt 0:01:10]} 72. Re4 {[%emt 0:00:19]} Ra3 {[%emt 0:00:10]} 73. Re3 {[%emt 0:00:51]} Ra4+ {[%emt 0:00:44]} 74. Re4 {[%emt 0:01:24]} Ra3 {[%emt 0:00:11]} 75. Re5 {[%emt 0:00:58]} Ra4+ {[%emt 0:00:48]} 76. Kg5 {[%emt 0:00:35]} Rg4+ {[%emt 0:00:27]} 77. Kxh5 {[%emt 0:00:06]} Rxg3 {[%emt 0:00:09]} 78. Re7+ {[%emt 0:00:35]} Kf6 {[%emt 0:00:17]} 79. Re1 {[%emt 0:01:01]} Kg7 {[%emt 0:00:23]} 80. Ra1 {[%emt 0:00:23]} Rg2 {[%emt 0:00:22]} 81. Ra7+ {[%emt 0:00:16]} Kf6 {[%emt 0:00:13]} 82. Kh6 {[%emt 0:00:17]} Rg1 {[%emt 0:00:46]} 83. h5 {[%emt 0:00:13]} Rg2 {[%emt 0:00:09]} 84. Ra8 {[%emt 0:00:42]} Kf7 {[%emt 0:00:15]} 85. Ra6 {[%emt 0:01:03]} Rg1 {[%emt 0:00:53]} 86. Rg6 {[%emt 0:00:15]} Rxg6+ {[%emt 0:01:02]} 87. hxg6+ {[%emt 0:00:16]} Kg8 {[%emt 0:00:22]} 88. g7 {[%emt 0:00:05]} Kf7 {[%emt 0:00:07]} 1-0

[Event "Niedersachsen Jubilaeumsturnier Open A 2"]
[Site "Wolfsburg"]
[Date "2024.11.15"]
[Round "1.11"]
[White "Poelig, Juergen"]
[Black "Meiwes, Thore"]
[Result "0-1"]
[ECO "C00"]
[WhiteElo "1874"]
[BlackElo "2112"]
[Annotator "RC"]
[PlyCount "120"]
[EventDate "2024.11.15"]
[EventCountry "GER"]
[SourceTitle "playchess.com"]
[Source "ChessBase"]
[SourceQuality "1"]
[TimeControl "5400+30"]

1. Nf3 {[%emt 0:00:04]} Nf6 {[%emt 0:00:04]} 2. g3 {[%emt 0:00:06]} b5 {[%emt 0:00:04]} 3. Bg2 {[%emt 0:00:20]} Bb7 {[%emt 0:00:02]} 4. O-O {[%emt 0:00:23]} e6 {[%emt 0:00:04]} 5. d3 {[%emt 0:00:15]} c5 {[%emt 0:00:08]} 6. e4 {[%emt 0:00:08]} d5 {[%emt 0:00:10]} 7. e5 {[%emt 0:00:32]} Nfd7 {[%emt 0:00:03]} 8. Re1 {[%emt 0:00:30]} Be7 {[%emt 0:00:21]} 9. Nbd2 {[%emt 0:00:25]} Nc6 {[%emt 0:00:08]} 10. Nf1 {[%emt 0:00:49]} O-O {[%emt 0:00:19]} 11. h4 {[%emt 0:00:53]} Qc7 {[%emt 0:00:11]} 12. Bf4 {[%emt 0:09:05]} Rfc8 {[%emt 0:00:05]} 13. N1h2 {[%emt 0:04:48]} Qd8 {[%emt 0:00:19]} 14. Ng5 {[%emt 0:12:24]} h6 {[%emt 0:01:14]} 15. Ngf3 {[%emt 0:09:11]} b4 {[%emt 0:00:18]} 16. Qd2 {[%emt 0:09:18]} Bf8 {[%emt 0:00:39]} 17. g4 {[%emt 0:03:37]} Ne7 {[%emt 0:00:27]} 18. h5 {[%emt 0:03:43]} a5 {[%emt 0:00:07]} 19. Bh3 {[%emt 0:06:47]} c4 {[%emt 0:05:20]} 20. g5 {[%emt 0:02:03]} c3 {[%emt 0:04:21]} 21. bxc3 {[%emt 0:03:10]} hxg5 {[%emt 0:03:36]} 22. Bxg5 {[%emt 0:05:43]} Rxc3 {[%emt 0:00:18]} 23. Nd4 {[%emt 0:11:47]} Rac8 {[%emt 0:10:11]} 24. Qf4 {[%emt 0:01:53]} Qb6 {[%emt 0:06:04]} 25. Re3 {[%emt 0:01:23]} Rxc2 {[%emt 0:16:27]} 26. Nxc2 {[%emt 0:04:32]} Rxc2 {[%emt 0:00:04]} 27. Rf3 {[%emt 0:00:41]} Nf5 {[%emt 0:10:25]} 28. Bxf5 {[%emt 0:00:19]} exf5 {[%emt 0:00:02]} 29. Qxf5 {[%emt 0:00:28]} Qe6 {[%emt 0:00:05]} 30. d4 {[%emt 0:02:42]} Qxf5 {[%emt 0:06:23]} 31. Rxf5 {[%emt 0:00:02]} a4 {[%emt 0:01:04]} 32. Nf3 {[%emt 0:01:35]} Ba6 {[%emt 0:02:24]} 33. Ne1 {[%emt 0:01:14]} Rxa2 {[%emt 0:07:50]} 34. Rxa2 {[%emt 0:00:36]} b3 {[%emt 0:00:01]} 35. Rxa4 {[%emt 0:05:06]} b2 {[%emt 0:00:20]} 36. Rxa6 {[%emt 0:01:22]} b1=Q {[%emt 0:00:04]} 37. Rf3 {[%emt 0:00:34]} Qxe1+ {[%emt 0:00:19]} 38. Kg2 {[%emt 0:00:08]} Qe4 {[%emt 0:03:03]} 39. Ra7 {[%emt 0:00:27]} Qxd4 {[%emt 0:01:10]} 40. Be3 {[%emt 0:00:50]} Qe4 {[%emt 0:02:36]} 41. Bf4 {[%emt 0:00:00]} Nc5 {[%emt 0:00:00]} 42. Bg3 {[%emt 0:00:00]} Ne6 {[%emt 0:00:00]} 43. Raxf7 {[%emt 0:00:00]} Bc5 {[%emt 0:00:00]} 44. R7f5 {[%emt 0:00:00]} Nd4 {[%emt 0:00:00]} 45. R5f4 {[%emt 0:00:00]} Nxf3 {[%emt 0:00:00]} 46. Rxe4 {[%emt 0:00:00]} dxe4 {[%emt 0:00:00]} 47. Kh3 {[%emt 0:00:00]} Kf7 {[%emt 0:00:00]} 48. Kg4 {[%emt 0:00:00]} Ke6 {[%emt 0:00:00]} 49. Kf4 {[%emt 0:00:04]} Nxe5 {[%emt 0:00:00]} 50. Kxe4 {[%emt 0:00:22]} Ng4 {[%emt 0:00:00]} 51. f3 {[%emt 0:01:33]} Nf6+ {[%emt 0:00:00]} 52. Kd3 {[%emt 0:02:53]} Nxh5 {[%emt 0:00:00]} 53. Bh4 {[%emt 0:00:37]} Be7 {[%emt 0:00:00]} 54. Bf2 {[%emt 0:00:32]} Kf5 {[%emt 0:00:00]} 55. Ke2 {[%emt 0:00:38]} Nf4+ {[%emt 0:00:00]} 56. Kd2 {[%emt 0:00:30]} Bb4+ {[%emt 0:00:00]} 57. Kc2 {[%emt 0:00:25]} g6 {[%emt 0:00:00]} 58. Kb3 {[%emt 0:00:17]} Nd3 {[%emt 0:00:00]} 59. Be3 {[%emt 0:00:50]} Bc5 {[%emt 0:00:00]} 60. Bd2 {[%emt 0:00:27]} Ne5 {[%emt 0:00:00]} 0-1

[Event "Niedersachsen Jubilaeumsturnier Open A 2"]
[Site "Wolfsburg"]
[Date "2024.11.15"]
[Round "1.12"]
[White "Ngo, Minh Duc"]
[Black "Thuemler, Floris"]
[Result "1-0"]
[ECO "C84"]
[WhiteElo "2111"]
[BlackElo "1872"]
[Annotator "RC"]
[PlyCount "95"]
[EventDate "2024.11.15"]
[EventCountry "GER"]
[SourceTitle "playchess.com"]
[Source "ChessBase"]
[SourceQuality "1"]
[TimeControl "5400+30"]

1. e4 {[%emt 0:00:03]} e5 {[%emt 0:00:05]} 2. Nf3 {[%emt 0:00:05]} Nc6 {[%emt 0:00:05]} 3. Bb5 {[%emt 0:00:04]} a6 {[%emt 0:00:05]} 4. Ba4 {[%emt 0:00:04]} Nf6 {[%emt 0:00:07]} 5. O-O {[%emt 0:00:07]} b5 {[%emt 0:00:06]} 6. Bb3 {[%emt 0:00:03]} Be7 {[%emt 0:00:07]} 7. d3 {[%emt 0:00:10]} d6 {[%emt 0:00:12]} 8. c3 {[%emt 0:00:10]} O-O {[%emt 0:00:11]} 9. h3 {[%emt 0:00:10]} Nb8 {[%emt 0:00:09]} 10. a4 {[%emt 0:00:53]} Bb7 {[%emt 0:00:34]} 11. Na3 {[%emt 0:00:58]} Nbd7 {[%emt 0:00:52]} 12. Be3 {[%emt 0:01:35]} bxa4 {[%emt 0:00:56]} 13. Bxa4 {[%emt 0:02:21]} d5 {[%emt 0:00:57]} 14. exd5 {[%emt 0:00:54]} Bxd5 {[%emt 0:02:11]} 15. d4 {[%emt 0:01:49]} exd4 {[%emt 0:00:49]} 16. Nxd4 {[%emt 0:01:17]} Nc5 {[%emt 0:01:36]} 17. Nc6 {[%emt 0:03:17]} Qd7 {[%emt 0:03:50]} 18. Bxc5 {[%emt 0:08:25]} Bxc5 {[%emt 0:01:35]} 19. Nb4 {[%emt 0:00:35]} c6 {[%emt 0:00:54]} 20. Nxd5 {[%emt 0:00:40]} Qxd5 {[%emt 0:00:26]} 21. Qxd5 {[%emt 0:02:48]} cxd5 {[%emt 0:00:06]} 22. Nc2 {[%emt 0:00:43]} Rfd8 {[%emt 0:01:09]} 23. Rfd1 {[%emt 0:03:49]} Ne4 {[%emt 0:01:11]} 24. Nd4 {[%emt 0:01:01]} Rab8 {[%emt 0:03:56]} 25. Ra2 {[%emt 0:05:37]} Rxb2 {[%emt 0:07:15]} 26. Rxb2 {[%emt 0:00:10]} Nxc3 {[%emt 0:00:16]} 27. Nc6 {[%emt 0:02:36]} Rc8 {[%emt 0:02:11]} 28. Rc2 {[%emt 0:06:40]} d4 {[%emt 0:06:33]} 29. Rxd4 {[%emt 0:01:46]} Bxd4 {[%emt 0:02:50]} 30. Rxc3 {[%emt 0:01:12]} Bxc3 {[%emt 0:01:25]} 31. Ne7+ {[%emt 0:00:04]} Kf8 {[%emt 0:00:15]} 32. Nxc8 {[%emt 0:00:05]} a5 {[%emt 0:00:11]} 33. Kf1 {[%emt 0:00:18]} f6 {[%emt 0:00:09]} 34. Ke2 {[%emt 0:00:09]} Kf7 {[%emt 0:00:06]} 35. Bd7 {[%emt 0:00:06]} Kg6 {[%emt 0:00:26]} 36. Nd6 {[%emt 0:00:37]} Bb4 {[%emt 0:00:29]} 37. Nc4 {[%emt 0:02:25]} Kg5 {[%emt 0:00:29]} 38. Kf3 {[%emt 0:01:05]} f5 {[%emt 0:00:24]} 39. Ne3 {[%emt 0:00:41]} g6 {[%emt 0:00:24]} 40. Nd5 {[%emt 0:00:48]} Bc5 {[%emt 0:00:43]} 41. Be8 {[%emt 0:02:46]} Bd6 {[%emt 0:00:39]} 42. Bd7 {[%emt 0:02:58]} Bc5 {[%emt 0:01:59]} 43. Nf4 {[%emt 0:00:10]} Bd6 {[%emt 0:00:38]} 44. Nd3 {[%emt 0:00:13]} Bc7 {[%emt 0:00:12]} 45. Ke3 {[%emt 0:00:57]} Bb6+ {[%emt 0:00:03]} 46. Kd2 {[%emt 0:00:31]} Kf6 {[%emt 0:00:14]} 47. Kc3 {[%emt 0:00:27]} Ke7 {[%emt 0:00:05]} 48. Ba4 {[%emt 0:00:28]} 1-0

[Event "Niedersachsen Jubilaeumsturnier Open A 2"]
[Site "Wolfsburg"]
[Date "2024.11.15"]
[Round "1.13"]
[White "Vormann, Dirk"]
[Black "Bruns, Kai-Christian"]
[Result "0-1"]
[ECO "D00"]
[WhiteElo "1869"]
[BlackElo "2088"]
[Annotator "RC"]
[PlyCount "104"]
[EventDate "2024.11.15"]
[EventCountry "GER"]
[SourceTitle "playchess.com"]
[Source "ChessBase"]
[SourceQuality "1"]
[TimeControl "5400+30"]

1. d4 {[%emt 0:00:05]} d5 {[%emt 0:00:03]} 2. Bf4 {[%emt 0:00:04]} c5 {[%emt 0:00:04]} 3. e3 {[%emt 0:00:16]} Nc6 {[%emt 0:00:04]} 4. c3 {[%emt 0:00:52]} Bf5 {[%emt 0:00:18]} 5. Nd2 {[%emt 0:00:16]} e6 {[%emt 0:00:19]} 6. Ngf3 {[%emt 0:00:25]} Qb6 {[%emt 0:00:40]} 7. Qc1 {[%emt 0:00:39]} Rc8 {[%emt 0:00:51]} 8. Be2 {[%emt 0:01:20]} Nf6 {[%emt 0:00:47]} 9. O-O {[%emt 0:00:49]} cxd4 {[%emt 0:01:07]} 10. exd4 {[%emt 0:00:14]} Be7 {[%emt 0:01:13]} 11. Be3 {[%emt 0:10:38]} h6 {[%emt 0:01:54]} 12. Ne5 {[%emt 0:00:50]} Bd6 {[%emt 0:05:40]} 13. Nxc6 {[%emt 0:04:19]} bxc6 {[%emt 0:01:53]} 14. b4 {[%emt 0:01:28]} O-O {[%emt 0:02:14]} 15. Nb3 {[%emt 0:03:47]} Qc7 {[%emt 0:00:49]} 16. h3 {[%emt 0:00:07]} Ne4 {[%emt 0:05:59]} 17. Nc5 {[%emt 0:03:17]} a5 {[%emt 0:05:36]} 18. Nxe4 {[%emt 0:02:10]} Bxe4 {[%emt 0:00:43]} 19. Qd2 {[%emt 0:01:25]} Ra8 {[%emt 0:01:43]} 20. a3 {[%emt 0:00:20]} Ra7 {[%emt 0:01:08]} 21. Ra2 {[%emt 0:01:42]} f6 {[%emt 0:05:35]} 22. Rfa1 {[%emt 0:02:09]} Rfa8 {[%emt 0:01:29]} 23. Bf1 {[%emt 0:09:02]} h5 {[%emt 0:05:15]} 24. Be2 {[%emt 0:04:47]} Qf7 {[%emt 0:01:52]} 25. f3 {[%emt 0:03:55]} Bf5 {[%emt 0:01:13]} 26. Kh1 {[%emt 0:02:36]} Qg6 {[%emt 0:01:20]} 27. Bf2 {[%emt 0:01:26]} Re7 {[%emt 0:03:53]} 28. c4 {[%emt 0:02:18]} dxc4 {[%emt 0:04:19]} 29. Bxc4 {[%emt 0:00:08]} axb4 {[%emt 0:00:05]} 30. axb4 {[%emt 0:00:18]} Rb8 {[%emt 0:00:14]} 31. Ra8 {[%emt 0:00:53]} Reb7 {[%emt 0:05:08]} 32. Rxb8+ {[%emt 0:02:42]} Rxb8 {[%emt 0:00:07]} 33. Ra6 {[%emt 0:00:33]} Rxb4 {[%emt 0:06:10]} 34. Ba2 {[%emt 0:01:54]} Rb8 {[%emt 0:21:01]} 35. Rxc6 {[%emt 0:01:59]} Rd8 {[%emt 0:01:00]} 36. Qe2 {[%emt 0:08:06]} Qe8 {[%emt 0:03:35]} 37. Ra6 {[%emt 0:04:01]} Kh8 {[%emt 0:02:06]} 38. g4 {[%emt 0:02:49]} hxg4 {[%emt 0:02:26]} 39. hxg4 {[%emt 0:00:05]} Bh7 {[%emt 0:06:10]} 40. Bxe6 {[%emt 0:03:42]} Qg6 {[%emt 0:03:10]} 41. Kg2 {[%emt 0:05:26]} Qb1 {[%emt 0:00:00]} 42. Qa2 {[%emt 0:00:00]} Qb7 {[%emt 0:00:00]} 43. Bd5 {[%emt 0:00:00]} Qd7 {[%emt 0:00:00]} 44. Ra8 {[%emt 0:00:00]} Bb8 {[%emt 0:00:00]} 45. Be6 {[%emt 0:00:00]} Qd6 {[%emt 0:00:00]} 46. Qb3 {[%emt 0:01:20]} Re8 {[%emt 0:01:11]} 47. d5 {[%emt 0:01:04]} Bg8 {[%emt 0:00:37]} 48. Qb5 {[%emt 0:04:49]} Qh2+ {[%emt 0:01:07]} 49. Kf1 {[%emt 0:00:02]} Bg3 {[%emt 0:00:33]} 50. Ra2 {[%emt 0:05:12]} Rb8 {[%emt 0:00:06]} 51. Qc5 {[%emt 0:04:22]} Rb1+ {[%emt 0:01:20]} 52. Ke2 {[%emt 0:00:08]} Qg2 {[%emt 0:01:00]} 0-1

[Event "Niedersachsen Jubilaeumsturnier Open A 2"]
[Site "Wolfsburg"]
[Date "2024.11.15"]
[Round "1.14"]
[White "Sreyas Payyappat"]
[Black "Retzlaff, Thomas"]
[Result "1-0"]
[ECO "C14"]
[WhiteElo "2084"]
[BlackElo "1866"]
[Annotator "RC"]
[PlyCount "61"]
[EventDate "2024.11.15"]
[EventCountry "GER"]
[SourceTitle "playchess.com"]
[Source "ChessBase"]
[SourceQuality "1"]
[TimeControl "5400+30"]

1. e4 {[%emt 0:00:02]} e6 {[%emt 0:00:08]} 2. d4 {[%emt 0:00:05]} d5 {[%emt 0:00:05]} 3. Nc3 {[%emt 0:00:05]} Nf6 {[%emt 0:00:06]} 4. Bg5 {[%emt 0:00:13]} Be7 {[%emt 0:00:06]} 5. e5 {[%emt 0:00:16]} Nfd7 {[%emt 0:00:07]} 6. Bxe7 {[%emt 0:00:18]} Qxe7 {[%emt 0:00:07]} 7. Qg4 {[%emt 0:02:08]} f5 {[%emt 0:04:19]} 8. Qg3 {[%emt 0:01:47]} O-O {[%emt 0:00:28]} 9. f4 {[%emt 0:02:01]} c5 {[%emt 0:01:10]} 10. Nf3 {[%emt 0:01:17]} a6 {[%emt 0:01:28]} 11. h4 {[%emt 0:01:02]} cxd4 {[%emt 0:00:44]} 12. Nxd4 {[%emt 0:00:28]} Nc6 {[%emt 0:00:42]} 13. O-O-O {[%emt 0:02:52]} Nxd4 {[%emt 0:03:16]} 14. Rxd4 {[%emt 0:00:08]} b5 {[%emt 0:00:19]} 15. Qe3 {[%emt 0:05:21]} Bb7 {[%emt 0:02:07]} 16. g4 {[%emt 0:01:23]} Nb8 {[%emt 0:00:22]} 17. gxf5 {[%emt 0:10:16]} Rxf5 {[%emt 0:00:48]} 18. Bh3 {[%emt 0:02:26]} Rf8 {[%emt 0:07:42]} 19. Rg1 {[%emt 0:30:01]} Nc6 {[%emt 0:01:19]} 20. Rd2 {[%emt 0:00:27]} d4 {[%emt 0:00:13]} 21. Qg3 {[%emt 0:00:08]} dxc3 {[%emt 0:00:46]} 22. Bxe6+ {[%emt 0:00:22]} Kh8 {[%emt 0:00:06]} 23. Rd7 {[%emt 0:00:07]} cxb2+ {[%emt 0:00:18]} 24. Kb1 {[%emt 0:00:12]} Qxd7 {[%emt 0:00:41]} 25. Bxd7 {[%emt 0:00:08]} Rf7 {[%emt 0:00:59]} 26. e6 {[%emt 0:00:22]} Re7 {[%emt 0:00:09]} 27. f5 {[%emt 0:00:44]} Nd4 {[%emt 0:05:16]} 28. Qg5 {[%emt 0:00:23]} Nf3 {[%emt 0:01:08]} 29. Qxe7 {[%emt 0:00:06]} Nxg1 {[%emt 0:00:07]} 30. Be8 {[%emt 0:00:05]} h6 {[%emt 0:00:23]} 31. Qf8+ {[%emt 0:00:06]} 1-0